Cogmind - Beta 14 *** ADVENTURER MODE // 2024.08.07 @ 04:23:18 Player: Ms. V3-11A Result: Core destroyed Performance ------------- Evolutions (6) 3000 Regions Visited (10) 2000 Robots Destroyed (140) 700 Value Destroyed (6822) 6822 Prototype IDs (20) 400 Alien Tech Used (0) 0 Bonus (2765) 2765 TOTAL SCORE: 15687 Bonus ------- High Alert Combat Kills 792 Follower Combat Kills 1885 Registered with UFD 300 Built Enhanced Grunts 300 A7 Reached Mainframe 300 Friendly Fire -812 Cogmind --------- Core Integrity 0/1150 Matter 183/300 Energy 119/420 System Corruption 8% Temperature Critical (675) Movement Treading (246) Ox1 Location -4/Factory Parts ------- > --- POWER (2) -------- Light Antimatter Reactor Quantum Reactor > --- PROPULSION (4) --- Medium Treads Armored Medium Treads Armored Medium Treads > --- UTILITY (10) ----- Advanced Heat Sink Advanced Heat Sink Huge Storage Unit Advanced Targeting Computer Graphene Brace EM Disruption Field Hacking Suite A0-MCA's Component Scanner > --- WEAPON (3) ------- Dispersion Rifle Dispersion Rifle Dispersion Rifle > --- INVENTORY (25) --- Large Storage Unit Energy Well (350) Matter Compressor (250) Matter Compressor (149) Field Laser Variable Charge Gun Dispersion Rifle Dispersion Rifle Dispersion Rifle Dispersion Rifle Advanced Variable Charge Gun Advanced Variable Charge Gun Companion Sword Peak State ------------ > --- POWER ------------ Quantum Reactor Quantum Reactor > --- PROPULSION ------- Centrium Heavy Treads Centrium Heavy Treads > --- UTILITY ---------- Advanced Cooling System Huge Storage Unit Centrium Medium Armor Plating Centrium Medium Armor Plating Centrium Medium Armor Plating Improved Hacking Suite A0-MCA's Component Scanner > --- WEAPON ----------- Advanced KE Penetrator Advanced KE Penetrator Advanced KE Penetrator > --- INVENTORY -------- Reinforced Fission Core Quantum Reactor Quantum Reactor Armored Medium Treads Armored Medium Treads Armored Medium Treads Armored Medium Treads Armored Medium Treads Large Storage Unit Energy Well Matter Compressor Matter Compressor Improved Medium Armor Plating Advanced Variable Charge Gun Advanced Variable Charge Gun Coil Gun Coil Gun Advanced KE Penetrator Companion Sword [Rating: 137] Favorites ----------- Power Fission Core Engine Light Ion Engine Power Core Fission Core Reactor Quantum Reactor Propulsion Improved Medium Treads Treads Improved Medium Treads Leg Aluminum Leg Hover Unit Cooled Airjet Utility Large Storage Unit Device Scrap Suit Storage Large Storage Unit Processor A0-MCA's Component Scanner Hackware Improved Hacking Suite Protection Light Armor Plating Weapon Subdweller Beam Cannon Energy Gun EM Pulse Gun Energy Cannon Subdweller Beam Cannon Ballistic Gun Advanced KE Penetrator Ballistic Cannon Magnetic Acceleration Cannon Launcher Heavy Rocket Launcher Special Weapon CPS Tube Impact Weapon Power Maul Slashing Weapon Companion Sword Build | -11 -10 -10 -9 -9 -6 -6 -6 -6 -5 -4 ------- Run | Yrd Mat Sub Rec Scr Fac Ext Cet Arc Fac Fac Slots Evolved 12 | . . . . . 8 . . . 2 2 Power 1 | . . . . . 1 . . . . . Propulsion 2 | . . . . . 1 . . . 1 . Utility 8 | . . . . . 5 . . . 1 2 Weapon 1 | . . . . . 1 . . . . . Parts Attached 156 | . 9 10 . 7 34 23 15 . 10 48 Power 18 | . 1 2 . 1 1 4 2 . . 7 Engine 7 | . 1 2 . . 1 3 . . . . Core 4 | . . . . 1 . 1 . . . 2 Reactor 7 | . . . . . . . 2 . . 5 Propulsion 36 | . 4 3 . 1 12 1 3 . 2 10 Treads 22 | . . . . 1 5 1 3 . 2 10 Leg 11 | . 4 3 . . 4 . . . . . Wheel . | . . . . . . . . . . . Hover 3 | . . . . . 3 . . . . . Flight . | . . . . . . . . . . . Utility 50 | . 3 3 . 2 10 7 5 . 6 14 Device 19 | . . 2 . . 4 3 2 . 1 7 Storage 3 | . 1 . . . . . 1 . 1 . Processor 6 | . . . . . 3 1 . . . 2 Hackware 3 | . . . . . . . . . 1 2 Protection 19 | . 2 1 . 2 3 3 2 . 3 3 Artifact . | . . . . . . . . . . . Weapon 52 | . 1 2 . 3 11 11 5 . 2 17 Energy Gun 9 | . 1 . . . . . . . 1 7 Energy Cannon 11 | . . 2 . . 4 4 1 . . . Ballistic Gun 17 | . . . . 2 2 . 3 . 1 9 Ballistic Cannon 3 | . . . . . 3 . . . . . Launcher 1 | . . . . . . 1 . . . . Special Weapon 4 | . . . . . . 3 1 . . . Impact Weapon 2 | . . . . . 1 1 . . . . Slashing Weapon 5 | . . . . 1 1 2 . . . 1 Piercing Weapon . | . . . . . . . . . . . Special Melee Weapon . | . . . . . . . . . . . Unidentified Prototypes 1 | . . . . 1 . . . . . . Corrupted Parts 5 | . 1 1 . . . . 2 . . 1 System Corruption 12 | . 1 6 . . . . 4 . . 1 Parts Lost 63 | . 3 6 . . 14 3 . . 2 35 Power 13 | . 1 1 . . 4 1 . . . 6 Propulsion 14 | . 1 3 . . 3 . . . . 7 Utility 16 | . . . . . 3 . . . 2 11 Weapon 20 | . 1 2 . . 4 2 . . . 11 Highest Loss Streak 11 | . 3 3 . . 3 2 . . 1 11 To Critical Strikes 1 | . . . . . 1 . . . . . Average Slot Usage (%) 92 | . 97 93 85 98 83 94 99 100 84 77 Engine 4 | . 13 14 14 1 4 10 1 . . . Core 5 | . . . . 12 2 2 . . . 2 Reactor 1 | . . . . . . . 11 13 11 5 Treads 11 | . . . . 12 6 20 20 20 11 15 Leg 9 | . 27 24 14 14 2 . . . . . Hover 1 | . . . . . 10 . . . . . Device 7 | . . 11 14 1 11 10 19 20 11 11 Storage 10 | . 14 14 14 14 6 6 6 6 5 5 Processor 5 | . . . . . 13 17 6 6 5 10 Protection 9 | . 11 2 . 12 4 7 13 13 16 4 Energy Gun 1 | . 14 5 . . . . . . . 5 Energy Cannon 10 | . . 18 28 17 3 12 2 . . . Ballistic Gun 6 | . 14 1 . 5 3 . 17 20 16 8 Ballistic Cannon 1 | . . . . . 7 3 . . . . Slashing Weapon 2 | . . . . 4 2 1 . . . . Peak Build Rating 137 | . 8 11 9 28 77 79 107 107 134 137 Average Rating 49 | . 7 9 9 18 68 75 102 107 130 104 On Entrance 50 | 6 6 8 9 9 28 70 78 107 107 132 Naked Turns . | . . . . . . . . . . . Heaviest Build 161 | 13 29 42 40 49 74 96 106 100 161 161 Greatest Support 160 | 20 20 20 10 20 90 90 90 90 160 160 Greatest Overweight (x) 7 | . 1 4 3 4 7 1 1 1 1 1 Average Overweight (x) 1 | . . 1 3 2 1 . . 1 . . Largest Inventory Capacity 25 | . 15 15 15 15 15 15 15 15 25 25 Average Capacity 15 | . 12 15 15 15 15 15 15 15 17 25 Most Carried 19 | . 11 13 11 15 15 15 15 15 18 19 Average Carried 13 | . 8 10 11 12 13 14 14 15 14 14 Final Capacity 25 | 8 15 15 15 15 15 15 15 15 25 25 Final Carried 18 | 6 10 11 11 15 13 15 15 15 18 13 Class Distribution -------------------- 59% | Mutant 12% | Scavenger-Tank 8% | Scavenger-Mutant 5% | Skirmisher 3% | Gunner Dominant Class ---------------- Mutant | -10/Materials Mutant | -10/Subcaves Mutant | -9/Recycling Mutant | -9/Scraptown Mutant | -6/Factory Scavenger-Mutant | -6/Extension Commander-Tank | -6/Cetus Scavenger-Tank | -6/Archives Scavenger-Tank | -5/Factory Scavenger-Tank | -4/Factory Resources | -11 -10 -10 -9 -9 -6 -6 -6 -6 -5 -4 ----------- Run | Yrd Mat Sub Rec Scr Fac Ext Cet Arc Fac Fac Matter Collected 5531 | 200 332 255 . 241 1522 453 175 . 851 1502 Remotely . | . . . . . . . . . . . Salvage Created 6325 | . 502 300 . . 1295 669 215 62 1085 2197 Parts 282 | . 31 23 . . 46 24 15 1 34 108 Haulers Intercepted 2 | . . . . . . . . . . 2 Recyclers Shooed 4 | . . . . . . 2 . . 1 1 Parts Field Recycled . | . . . . . . . . . . . Retrieved Matter . | . . . . . . . . . . . Parts Self-Destructed 11 | . . 11 . . . . . . . . Prevented . | . . . . . . . . . . . Kills | -11 -10 -10 -9 -9 -6 -6 -6 -6 -5 -4 ------- Run | Yrd Mat Sub Rec Scr Fac Ext Cet Arc Fac Fac Combat Hostiles Destroyed 123 | . 15 8 . . 33 13 2 1 17 34 Melee 2 | . . . . . 1 . . . . 1 Guns 73 | . 12 2 . . 8 . . 1 17 33 Cannons 35 | . . 5 . . 20 9 1 . . . AOE 8 | . 3 1 . . . 4 . . . . Classes Destroyed 18 | . 2 2 . . 8 . . . 2 4 Worker 4 | . . . . . . . . . 3 1 Builder 1 | . . . . . 1 . . . . . Hauler 2 | . . . . . . . . . . 2 Mechanic 1 | . . . . . . . . . . 1 Operator 1 | . . . . . . . . . . 1 Turret 2 | . . 2 . . . . . . . . Watcher 2 | . . . . . 1 1 . . . . Swarmer 28 | . 6 4 . . 3 4 . . 3 8 Grunt 44 | . 9 . . . 14 4 . . 6 11 Brawler 4 | . . . . . 1 . . . 2 1 Duelist 3 | . . . . . 1 . . . 1 1 Protector 1 | . . . . . 1 . . . . . Sentry 13 | . . . . . 5 5 . 1 2 . Demolisher 1 | . . . . . . . . . 1 . Hunter 13 | . . . . . 3 . . . 1 9 Programmer 9 | . . . . . 6 . . . 1 2 Heavy 2 | . . . . . . . . . . 2 Cetus Guard 2 | . . . . . . . 2 . . . Subdweller 4 | . . 4 . . . . . . . . Thug 1 | . . . . . . . 1 . . . Guerrilla 2 | . . . . . . 2 . . . . Best Kill Streak 7 | . 6 7 . . 5 5 2 1 6 7 Combat Bots Only 7 | . 6 4 . . 5 4 2 1 4 7 Max Kills in Single Turn 3 | . 3 2 . . 2 2 1 1 2 2 Gunslinging 1 | . . . . . . . . . 1 1 Exploded 3 | . 3 1 . . . 1 . . . . Melee 1 | . . . . . 1 . . . . 1 Uniques/NPCs Destroyed . | . . . . . . . . . . . Combat | -11 -10 -10 -9 -9 -6 -6 -6 -6 -5 -4 -------- Run | Yrd Mat Sub Rec Scr Fac Ext Cet Arc Fac Fac Hostile Shots Fired 1708 | . 67 81 . . 464 147 22 . 123 804 Missed 505 | . 13 34 . . 145 45 8 . 34 226 Damage Taken 17543 | . 528 496 . . 3918 991 280 29 1491 9810 Core 2036 | . 53 80 . . 545 70 30 . 76 1182 Absorbed by Shields 507 | . . . . . . 169 68 10 260 . Reduced by Siege Mode 144 | . . . . . . . . . 32 112 Redirected to Shielding 12 | . 12 . . . . . . . . . Ignored by Resistances 5049 | . 161 146 . . 1124 343 92 10 477 2696 Regen/Repaired (Parts) 180 | . . . . . 100 80 . . . . Core Remaining (%) 65 | 100 . . . 46 . . . 24 92 . Volleys Fired 382 | . 37 35 . . 121 27 7 4 37 114 Largest 3 | . 2 2 . . 3 3 3 3 3 3 Hottest 295 | . 60 160 . . 196 270 270 105 240 295 Shots Fired 839 | . 73 56 . . 216 56 18 12 108 300 Gun 590 | . 73 17 . . 78 . 2 12 108 300 Cannon 239 | . . 39 . . 138 48 14 . . . Launcher 6 | . . . . . . 6 . . . . Special 4 | . . . . . . 2 2 . . . Kinetic 544 | . 37 4 . . 173 10 2 12 107 199 Thermal 236 | . . 39 . . 43 38 14 . 1 101 Explosive 6 | . . . . . . 6 . . . . Electromagnetic 49 | . 36 13 . . . . . . . . Robot Hit Streak 34 | . 17 16 . . 20 31 14 10 17 34 Robot Miss Streak 4 | . 2 2 . . 4 2 1 2 2 2 Penetration Max 1 | . . . . . . . . . 1 1 Secondary Targets 22 | . 2 . . . 1 . . . 7 12 Max Gunslinging Chain 2 | . 1 . . . 1 . . . 2 1 Shots Hit Robots 668 | . 56 37 . . 171 35 14 10 86 259 Core Hits 285 | . 25 10 . . 65 34 6 2 41 102 Critical Kills 18 | . 1 . . . 1 . . . 6 10 Critical Parts Destroyed 32 | . . . . . 2 . . 4 10 16 Critical Strikes 58 | . 1 . . . 8 . . 4 19 26 Meltdown 1 | . . . . . 1 . . . . . Destroy 50 | . 1 . . . . . . 4 19 26 Blast 5 | . . . . . 5 . . . . . Smash 2 | . . . . . 2 . . . . . Melee Attacks 25 | . . . . . 8 16 . . . 1 Impact 10 | . . . . . 5 5 . . . . Slashing 15 | . . . . . 3 11 . . . 1 Piercing . | . . . . . . . . . . . Sneak Attacks . | . . . . . . . . . . . Combat Hostiles . | . . . . . . . . . . . Follow-up Attacks . | . . . . . . . . . . . Damage Inflicted 18908 | . 678 873 . . 5291 1915 396 268 2818 6669 Guns 11788 | . 562 153 . . 1435 . 28 268 2811 6531 Cannons 5455 | . . 615 . . 3468 1004 368 . . . Explosions 1170 | . 97 105 . . . 871 . . . 97 Melee 396 | . . . . . 355 . . . . 41 Ramming 99 | . 19 . . . 33 40 . . 7 . Kinetic 11528 | . 214 28 . . 3926 205 28 268 2811 4048 Thermal 5444 | . 97 720 . . 977 799 368 . . 2483 Explosive 871 | . . . . . . 871 . . . . Electromagnetic 570 | . 348 125 . . . . . . . 97 Impact 242 | . . . . . 242 . . . . . Slashing 154 | . . . . . 113 . . . . 41 Piercing . | . . . . . . . . . . . Highest Corruption 7 | . 1 7 7 . 2 2 6 6 3 6 Average Corruption 2 | . 1 4 7 . 1 2 5 6 1 4 Corruption Purged . | . . . . . . . . . . . Corruption Blocked . | . . . . . . . . . . . Effects 136 | . 4 22 6 . 19 30 19 7 12 17 Message Errors 33 | . . 5 2 . 6 6 4 1 5 4 Matter Fused 30 | . 2 1 1 . 5 11 3 . 5 2 Heat Flow Errors 18 | . 1 3 1 . 3 2 2 3 . 3 Energy Discharges 13 | . . . 1 . 2 2 4 2 . 2 Parts Rejected 2 | . . 1 . . . . . . . 1 Parts Fused 1 | . . . . . . 1 . . . . Data Loss (minor) 18 | . 1 6 . . 2 3 1 1 1 3 Data Loss (major) 10 | . . 3 . . 1 3 2 . . 1 Misfires 6 | . . 1 . . . 2 2 . . 1 Alerts 3 | . . 2 1 . . . . . . . Weapon Failures 2 | . . . . . . . 1 . 1 . Overload Shots 6 | . . . . . 1 . . . 1 4 Overflow Damage 448 | . 63 23 . . 262 100 . . . . Projectiles 145 | . . 23 . . 120 2 . . . . Explosions 152 | . 63 . . . . 89 . . . . Melee 151 | . . . . . 142 9 . . . . Knockbacks 25 | . . . . . 25 . . . . . Impact 1 | . . . . . 1 . . . . . Kinetic 23 | . . . . . 23 . . . . . Secondary 1 | . . . . . 1 . . . . . Self-Inflicted Damage 157 | . 117 . . . . 40 . . . . Shots 3 | . 2 . . . . 1 . . . . Rammed 16 | . . . . . 11 4 . . 1 . Targets Rammed 19 | . 3 . . . 11 4 . . 1 . Kicked 3 | . 3 . . . . . . . . . Crushed . | . . . . . . . . . . . Highest Temperature 874 | . 179 419 219 . 479 306 336 232 100 874 Average Temperature 119 | . 47 137 110 . 95 94 146 133 60 178 Received Heat Transfer 3114 | . 198 252 . . 1264 219 24 6 218 933 Effects 40 | . . . . . 5 . 3 . . 32 Shutdowns 15 | . . . . . 3 . 1 . . 11 Energy Bleed 4 | . . . . . 1 . . . . 3 Interference 6 | . . . . . . . 2 . . 4 Matter Decay 3 | . . . . . 1 . . . . 2 Short Circuit 3 | . . . . . . . . . . 3 Damage (minor) 2 | . . . . . . . . . . 2 Damage (major) 3 | . . . . . . . . . . 3 Damage (core) 4 | . . . . . . . . . . 4 Siege Activations 4 | . . . . . . . . . 1 3 Total Turns 104 | . . . . . . . . . 22 82 Longest Duration 33 | . . . . . . . . . 22 33 Robots Corrupted 4 | . . . . . 4 . . . . . Combat Hostiles 3 | . . . . . 3 . . . . . Parts Fried 4 | . . . . . 3 . . . . 1 Impact Corruptions 7 | . . . . . 6 1 . . . . Robots Melted 2 | . . . . . 1 . 1 . . . Combat Hostiles 2 | . . . . . 1 . 1 . . . Parts Melted 14 | . . 2 . . 3 3 . . . 6 Heat Transferred 7289 | . 100 914 . . 1387 1119 548 . . 3221 Parts Sabotaged . | . . . . . . . . . . . Parts Stolen . | . . . . . . . . . . . Parts Stripped . | . . . . . . . . . . . Power Chain Reactions 2 | . 1 1 . . . . . . . . Alert | -11 -10 -10 -9 -9 -6 -6 -6 -6 -5 -4 ------- Run | Yrd Mat Sub Rec Scr Fac Ext Cet Arc Fac Fac Peak Influence 876 | . 342 . . . 529 423 252 95 876 627 Initial 285 | . . . . . . 55 177 17 27 285 Average 251 | . 129 . . . 216 182 152 82 569 432 Maximum Alert Level 3 | . 1 . . . 2 2 1 . 3 2 Low Security (%) 42 | . 61 . 100 . 48 51 53 100 9 . Level 1 34 | . 38 . . . 34 46 46 . 16 31 Level 2 19 | . . . . . 17 1 . . 46 68 Level 3 2 | . . . . . . . . . 27 . Level 4 . | . . . . . . . . . . . Level 5 . | . . . . . . . . . . . High Security . | . . . . . . . . . . . Max Security . | . . . . . . . . . . . Squads Dispatched 34 | . 3 . . . 9 6 . . 8 8 Investigation 7 | . 3 . . . 1 1 . . 2 . Extermination 6 | . . . . . 4 . . . . 2 Reinforcement 14 | . . . . . 2 5 . . 2 5 Assault 5 | . . . . . 1 . . . 3 1 Garrison 2 | . . . . . 1 . . . 1 . Intercept . | . . . . . . . . . . . Searches Triggered . | . . . . . . . . . . . Construction Impeded 6 | . . . . . 2 3 . . 1 . Haulers Reinforced 1 | . . . . . . . . . . 1 Active Scanning Responses . | . . . . . . . . . . . Cargo Convoy Interrupts . | . . . . . . . . . . . Stealth | -11 -10 -10 -9 -9 -6 -6 -6 -6 -5 -4 --------- Run | Yrd Mat Sub Rec Scr Fac Ext Cet Arc Fac Fac Distress Signals 14 | . 3 . . . 3 1 1 . 2 4 Communications Jammed . | . . . . . . . . . . . Distress Signals . | . . . . . . . . . . . Times Spotted 237 | . 28 13 . . 51 36 5 4 36 64 Peak Tracking Total 8 | . 7 6 . . 5 8 5 2 8 8 Tactical Retreats 14 | . 1 1 . . 2 1 . . 2 7 Traps | -11 -10 -10 -9 -9 -6 -6 -6 -6 -5 -4 ------- Run | Yrd Mat Sub Rec Scr Fac Ext Cet Arc Fac Fac Traps Triggered 12 | . 3 . . . 1 6 . . 1 1 Indirectly . | . . . . . . . . . . . Trap Hack Attempts . | . . . . . . . . . . . Triggered . | . . . . . . . . . . . Disarmed . | . . . . . . . . . . . Reprogrammed . | . . . . . . . . . . . Reused . | . . . . . . . . . . . Traps Extracted . | . . . . . . . . . . . Installed . | . . . . . . . . . . . Triggered . | . . . . . . . . . . . Most Traps Carried 1 | . . 1 1 1 . . . . . . Machines | -11 -10 -10 -9 -9 -6 -6 -6 -6 -5 -4 ---------- Run | Yrd Mat Sub Rec Scr Fac Ext Cet Arc Fac Fac Machines Disabled 30 | . 2 1 . . 4 4 . 1 9 9 Max in Single Turn 4 | . 2 1 . . 1 2 . 1 1 4 Garrison Access 3 | . . . . . 1 . . . 1 1 Machines Repaired . | . . . . . . . . . . . Machines Dismantled . | . . . . . . . . . . . Machines Sabotaged . | . . . . . . . . . . . Overloaded Fab Kills . | . . . . . . . . . . . Hacking | -11 -10 -10 -9 -9 -6 -6 -6 -6 -5 -4 --------- Run | Yrd Mat Sub Rec Scr Fac Ext Cet Arc Fac Fac Machines Accessed 28 | . . . . 5 9 10 1 . 1 2 Terminals 16 | . . . . . 4 10 1 . . 1 Fabricators 2 | . . . . . 2 . . . . . Repair Stations 2 | . . . . . 2 . . . . . Recycling Units . | . . . . . . . . . . . Scanalyzers . | . . . . . . . . . . . Garrison Access 3 | . . . . . 1 . . . 1 1 Total Hacks 65 | . . . . 25 18 13 1 . 3 5 Successful 49 | . . . . 25 10 10 1 . . 3 Failed 16 | . . . . . 8 3 . . 3 2 Catastrophic 2 | . . . . . 1 . . . 1 . Database Lockouts . | . . . . . . . . . . . Manual 11 | . . . . . 9 . 1 . . 1 Terminals 26 | . . . . . 9 13 1 . . 3 Fabricators 3 | . . . . . 3 . . . . . Repair Stations 4 | . . . . . 4 . . . . . Recycling Units . | . . . . . . . . . . . Scanalyzers . | . . . . . . . . . . . Garrison Access 7 | . . . . . 2 . . . 3 2 Terminal Hacks 41 | . . . . 25 4 10 1 . . 1 Record 25 | . . . . 24 . . . . . 1 Robot Analysis 1 | . . . . . 1 . . . . . Open Door 11 | . . . . 1 1 8 1 . . . Branch Access Points 1 | . . . . . 1 . . . . . Terminal Index 1 | . . . . . 1 . . . . . Recall Reinforcements 1 | . . . . . . 1 . . . . Zone Layout 1 | . . . . . . 1 . . . . Fabricator Hacks . | . . . . . . . . . . . Repair Station Hacks 2 | . . . . . 2 . . . . . Refit 2 | . . . . . 2 . . . . . Recycling Unit Hacks . | . . . . . . . . . . . Scanalyzer . | . . . . . . . . . . . Garrison Access Hacks 1 | . . . . . . . . . . 1 Seal Access 1 | . . . . . . . . . . 1 Unauthorized Hacks 5 | . . . . . 4 . . . . 1 Terminals 3 | . . . . . 2 . . . . 1 Botnet 3 | . . . . . 2 . . . . 1 Fabricators 2 | . . . . . 2 . . . . . Liberate 1 | . . . . . 1 . . . . . Fabnet 1 | . . . . . 1 . . . . . Repair Stations . | . . . . . . . . . . . Recycling Units . | . . . . . . . . . . . Scanalyzers . | . . . . . . . . . . . Garrison Access . | . . . . . . . . . . . Data Cores Recovered . | . . . . . . . . . . . Used . | . . . . . . . . . . . Hacking Detections 10 | . . . . . 5 3 . . 1 1 Full Trace Events 2 | . . . . . 1 . . . 1 . Feedback Events 1 | . . . . . . . . . 1 . Corruption 1 | . . . . . . . . . 1 . Feedback Blocked . | . . . . . . . . . . . Robot Schematics Acquired . | . . . . . . . . . . . Robots Built . | . . . . . . . . . . . Authchips . | . . . . . . . . . . . Time . | . . . . . . . . . . . Total Robot Build Rating . | . . . . . . . . . . . Part Schematics Acquired . | . . . . . . . . . . . Parts Built . | . . . . . . . . . . . Authchips . | . . . . . . . . . . . Time . | . . . . . . . . . . . Total Part Build Rating . | . . . . . . . . . . . Parts Repaired . | . . . . . . . . . . . Time . | . . . . . . . . . . . Parts Recycled . | . . . . . . . . . . . Recycled Matter . | . . . . . . . . . . . Retrieved Matter . | . . . . . . . . . . . Retrieved Components . | . . . . . . . . . . . Parts Scanalyzed . | . . . . . . . . . . . Part Schematics Acquired . | . . . . . . . . . . . Parts Damaged . | . . . . . . . . . . . Bothacking | -11 -10 -10 -9 -9 -6 -6 -6 -6 -5 -4 ------------ Run | Yrd Mat Sub Rec Scr Fac Ext Cet Arc Fac Fac Used RIF Installer . | . . . . . . . . . . . Robots Hacked . | . . . . . . . . . . . Non-combat . | . . . . . . . . . . . Combat . | . . . . . . . . . . . Robot Hacks Applied . | . . . . . . . . . . . Relay Couplers Released 9 | . . . . . 7 . . . 2 . Machine Destruction 5 | . . . . . 3 . . . 2 . Programmers 4 | . . . . . 4 . . . . . Fabnet Peak Effective % 3 | . . . . . . . . . 3 1 Robots Rewired 18 | . . . . . . 18 . . . . Allies Hacked 1 | . . . . . 1 . . . . . Hacks Repelled . | . . . . . . . . . . . Allies | -11 -10 -10 -9 -9 -6 -6 -6 -6 -5 -4 -------- Run | Yrd Mat Sub Rec Scr Fac Ext Cet Arc Fac Fac Total Allies 41 | . . . . . 6 30 5 . . . Largest Group 15 | . . . . . 3 13 15 14 8 . Highest-Rated Group 901 | . . . . . 87 486 901 870 584 . Highest-Rated Ally 159 | . . . . . 29 159 159 159 96 . Total Orders 6 | . . . . . . 4 2 . . . STAY 3 | . . . . . . 2 1 . . . FOLLOW 3 | . . . . . . 2 1 . . . Ally Attacks 402 | . . . . . 101 194 35 23 49 . Total Damage 9150 | . . . . . 1228 3773 655 803 2691 . Kills 61 | . . . . . 12 27 3 3 16 . Allies Corrupted . | . . . . . . . . . . . Allies Melted 1 | . . . . . . . . . 1 . Intel | -11 -10 -10 -9 -9 -6 -6 -6 -6 -5 -4 ------- Run | Yrd Mat Sub Rec Scr Fac Ext Cet Arc Fac Fac Robot Analysis Total 1 | . . . . . 1 . . . . . Derelict Logs Recovered 3 | . . 1 . 2 . . . . . . Drone Launches . | . . . . . . . . . . . Drone Recoveries . | . . . . . . . . . . . Exploration | -11 -10 -10 -9 -9 -6 -6 -6 -6 -5 -4 ------------- Run | Yrd Mat Sub Rec Scr Fac Ext Cet Arc Fac Fac Turns Passed 18143 | . 1135 1129 152 7091 3079 2241 735 262 962 1357 Spaces Moved 6967 | 1 623 429 47 2201 1539 944 265 87 463 368 Core . | . . . . . . . . . . . Treads 4636 | . . . . 2012 497 944 265 87 463 368 Legs 1526 | 1 623 429 47 189 237 . . . . . Wheels . | . . . . . . . . . . . Hover 805 | . . . . . 805 . . . . . Flight . | . . . . . . . . . . . Fastest Speed 102 | 120 120 190 330 240 102 160 160 240 160 160 Average Speed 228 | 120 158 237 330 316 161 186 239 240 175 237 Slowest Speed 490 | 120 190 400 330 400 490 240 240 240 240 250 Overloaded Moves . | . . . . . . . . . . . Propulsion Burnouts . | . . . . . . . . . . . Robots Hopped . | . . . . . . . . . . . Cave-ins Triggered . | . . . . . . . . . . . Exploration Rate (%) 45 | 2 79 29 10 94 27 85 70 75 12 12 Regions Visited 10 Branch Regions 6 Pre-discovered Areas . | . . . . . . . . . . . Known Exits Taken 3 | . . . . . 1 1 . 1 . . Unknown Exits Taken 7 | 1 1 1 1 1 . . 1 . 1 . Scrap Searched 2 | . . . . 2 . . . . . . Spaces Dug 1 | . . . . . . . . . . 1 Terrain Destroyed 182 | . 30 8 . . 25 43 1 4 16 55 Melee . | . . . . . . . . . . . Projectile 75 | . . 2 . . 25 9 1 4 16 18 AOE 107 | . 30 6 . . . 34 . . . 37 Terrain Rammed . | . . . . . . . . . . . Walls Destroyed . | . . . . . . . . . . . Machines Disabled . | . . . . . . . . . . . Actions | -11 -10 -10 -9 -9 -6 -6 -6 -6 -5 -4 --------- Run | Yrd Mat Sub Rec Scr Fac Ext Cet Arc Fac Fac Total 8488 | . 705 485 46 2346 1927 1353 358 132 535 601 Wait 615 | . 22 . . 101 173 176 49 42 5 47 Move 6957 | . 622 428 46 2200 1538 943 264 86 462 368 Hop . | . . . . . . . . . . . Pick Up 103 | . 6 9 . 18 20 17 8 . 11 14 Fast Attach 60 | . 4 1 . 2 14 8 3 . 4 24 Attach 54 | . 1 6 . 4 14 3 1 . 3 22 Detach 8 | . . . . 3 2 . . . . 3 Swap 42 | . 4 3 . 1 6 12 11 . 3 2 Drop 98 | . 6 3 . 17 20 22 15 . 9 6 Fire 382 | . 37 35 . . 121 27 7 4 37 114 Melee 25 | . . . . . 8 16 . . . 1 Ram 1 | . . . . . 1 . . . . . Kick 3 | . 3 . . . . . . . . . Crush 15 | . . . . . 10 4 . . 1 . Escape Stasis 10 | . . . . . . 10 . . . . Rewire 115 | . . . . . . 115 . . . . Trap . | . . . . . . . . . . . Miscellaneous . | . . . . . . . . . . . Route ------- -11/Scrapyard -10/Materials (discovered 3 exits: [*Mat] / [*Min] / [*Sub]) -10/Subcaves (discovered 2 exits: [*Mat] / [*Rec]) -9/Recycling -9/Scraptown (discovered 2 exits: *Fac x2) -6/Factory (discovered 5 exits: *Fac / Low x2 / *Ext x2) -6/Extension (discovered 2 exits: *Fac / *Cet) -6/Cetus -6/Archives (discovered 2 exits: *Fac / [*Hub]) -5/Factory -4/Factory (discovered 1 exit: Arm) History --------- Turn | Location | Event 1 | -11/Scrapyard | Discovered new exit (range 0) 1 | -11/Scrapyard | Entered Materials 306 | -10/Materials | Build established: Mutant 406 | -10/Materials | Lost 3 parts (1p1n1w) 432 | -10/Materials | Discovered new exit (range 14) 772 | -10/Materials | Discovered new exit (range 16) 1121 | -10/Materials | Discovered new exit (range 9) 1136 | -10/Materials | Entered Subcaves 1351 | -10/Subcaves | Learned 2 Materials zone layouts 1366 | -10/Subcaves | Discovered new exit (range 5) 1419 | -10/Subcaves | Shifting Twisted Machinery released Sub. Power Source 1603 | -10/Subcaves | Discovered new exit (range 13) 1610 | -10/Subcaves | Shifting Twisted Machinery released Mak. Shrapnel Gun 1645 | -10/Subcaves | Core integrity fell below 50% 1647 | -10/Subcaves | Lost 3 parts (1p1n1w) 1862 | -10/Subcaves | Shifting Twisted Machinery released Multitool 1981 | -10/Subcaves | Build established: Scavenger-Mutant 2265 | -10/Subcaves | Entered Recycling 2295 | -9/Recycling | Build established: Mutant 2335 | -9/Recycling | Scanned before Scraplab entrance 2374 | -9/Recycling | Discovered new exit (range 11) 2384 | -9/Recycling | Entered Scraplab 2417 | -9/Recycling | Entered Scraptown 2417 | -9/Scraptown | System corruption cleaned by C-Scrubber 4065 | -9/Scraptown | Scanned Subdweller tech in exchange for log data 4075 | -9/Scraptown | Learned 12 Research zone layouts 4329 | -9/Scraptown | Discovered new exit (range 5) 4626 | -9/Scraptown | Visited Scrapoid Research Area 4719 | -9/Scraptown | Visited Comm Corps 4870 | -9/Scraptown | Visited Science Testing Area 4943 | -9/Scraptown | Visited Symbiants 5810 | -9/Scraptown | Visited TADAMA 5931 | -9/Scraptown | Visited Cave Peace 6043 | -9/Scraptown | Visited Shadow of the Wyrm 6264 | -9/Scraptown | Visited UFD Registry 6264 | -9/Scraptown | Registered with UFD as "Cargomachine" 6363 | -9/Scraptown | Visited LU-1G1's Boring Crew 6494 | -9/Scraptown | Visited Junk Repository 6642 | -9/Scraptown | Visited Abandonware Association 6677 | -9/Scraptown | Learned abandonware demo "ERRANTS.EXE" 7275 | -9/Scraptown | Visited Sword Containment 7393 | -9/Scraptown | Visited Scrap Suit Storage 7418 | -9/Scraptown | Found Scrap Suit 7425 | -9/Scraptown | Found Scrap Suit 7759 | -9/Scraptown | Visited A0-MCA Data Center 7781 | -9/Scraptown | Given a B- rating by A0-MCA 7790 | -9/Scraptown | Found Unknown Processor 7832 | -9/Scraptown | Visited Scrapoid Pod Storage 7951 | -9/Scraptown | Discovered new exit (range 3) 8434 | -9/Scraptown | Visited Research Penetration Think Tank 8514 | -9/Scraptown | Visited Cartography Club 9508 | -9/Scraptown | Entered Factory 9508 | -6/Factory | Evolved 8 slots: Power x1, Propulsion x1, Utility x5, Weapon x1 9510 | -6/Factory | Identified A0-MCA's Component Scanner 10710 | -6/Factory | Garrison activated, responded to threat 10980 | -6/Factory | Lost 3 parts (1p2w) 11325 | -6/Factory | Build established: Skirmisher 11775 | -6/Factory | Discovered new exit (range 6) 11795 | -6/Factory | Identified exit to Factory 11905 | -6/Factory | Identified exit to Lower Caves 11905 | -6/Factory | Identified exit to Extension 12105 | -6/Factory | Core integrity fell below 50% 12389 | -6/Factory | Build established: Mutant 12587 | -6/Factory | Entered Extension 12633 | -6/Extension | Rescued a captive Derelict 12633 | -6/Extension | Rescued a captive Derelict 12815 | -6/Extension | Rescued a captive Derelict 12816 | -6/Extension | Rescued a captive Derelict 13067 | -6/Extension | Rescued a captive Derelict 13234 | -6/Extension | Rescued a captive Derelict 13268 | -6/Extension | Rescued a captive Derelict 13351 | -6/Extension | Build established: Commander-Gunner 13689 | -6/Extension | Disrupted transfer network 13712 | -6/Extension | Build established: Commander-Mutant 13804 | -6/Extension | Spotted B-75 Beast 13823 | -6/Extension | Allies destroyed B-75 Beast 13834 | -6/Extension | Spotted B-75 Beast 13842 | -6/Extension | Allies destroyed B-75 Beast 13870 | -6/Extension | Lost 9 allies 13980 | -6/Extension | Lost 3 allies 14011 | -6/Extension | Rescued A7 14142 | -6/Extension | Build established: Scavenger-Tank 14507 | -6/Extension | Build established: Scavenger-Mutant 14621 | -6/Extension | Rescued a captive Derelict 14622 | -6/Extension | Rescued a captive Derelict 14641 | -6/Extension | Lost 3 allies 14690 | -6/Extension | Rescued a captive Derelict 14691 | -6/Extension | Rescued a captive Derelict 14759 | -6/Extension | Discovered exit to Factory (range 10) 14762 | -6/Extension | Discovered new exit (range 6) 14794 | -6/Extension | Identified exit to Cetus 14828 | -6/Extension | Entered Cetus 14828 | -6/Cetus | Accompanied by 13 allies (A7) 14833 | -6/Cetus | Acquired a Cetus Manufacturing Module code from A7 14857 | -6/Cetus | Spotted Cetus Guard 14857 | -6/Cetus | Spotted Cetus Guard 14862 | -6/Cetus | Spotted Cetus Guard 14862 | -6/Cetus | Spotted Cetus Guard 14871 | -6/Cetus | Allies destroyed Cetus Guard 14880 | -6/Cetus | Allies destroyed Cetus Guard 14886 | -6/Cetus | Destroyed Cetus Guard 14895 | -6/Cetus | Destroyed Cetus Guard 14916 | -6/Cetus | Lost 3 allies 15091 | -6/Cetus | Started Cetus Manufacturing Module 15116 | -6/Cetus | Manufactured an Enhanced Grunt 15123 | -6/Cetus | Escorted A7 to Cetus Mainframe 15141 | -6/Cetus | Manufactured an Enhanced Grunt 15154 | -6/Cetus | Build established: Scavenger-Tank 15166 | -6/Cetus | Manufactured an Enhanced Grunt 15191 | -6/Cetus | Manufactured an Enhanced Grunt 15216 | -6/Cetus | Manufactured an Enhanced Grunt 15477 | -6/Cetus | Build established: Commander-Tank 15518 | -6/Cetus | Discovered new exit (range 15) 15563 | -6/Cetus | Entered Archives 15563 | -6/Archives | Accompanied by 14 allies (A7) 15568 | -6/Archives | Received a hacking code to weaken MAIN.C 15631 | -6/Archives | Lost 5 allies 15641 | -6/Archives | Discovered exit to Factory (range 16) 15716 | -6/Archives | Discovered new exit (range 13) 15825 | -6/Archives | Entered Factory 15825 | -5/Factory | Accompanied by 8 allies 15825 | -5/Factory | Evolved 2 slots: Propulsion x1, Utility x1 15906 | -5/Factory | Build established: Scavenger-Tank 15917 | -5/Factory | Garrison activated, responded to threat 16110 | -5/Factory | Lost 5 allies 16348 | -5/Factory | Discovered new exit (range 11) 16425 | -5/Factory | First assault squad dispatched 16787 | -5/Factory | Entered another Factory area 16787 | -4/Factory | Evolved 2 slots: Utility x2 16788 | -4/Factory | Identified exit to Armory 17185 | -4/Factory | Lost 3 parts (1p1u1w) 17265 | -4/Factory | Lost 9 parts (1p1n5u2w) 17282 | -4/Factory | Found Active Sensor Suite 17460 | -4/Factory | Lost 11 parts (2p3n2u4w) 17577 | -4/Factory | Lost 3 parts (1n2w) 17787 | -4/Factory | First assault squad dispatched 17795 | -4/Factory | Build established: Scavenger-Mutant 17958 | -4/Factory | Core integrity fell below 50% 18129 | -4/Factory | Core integrity fell below 20% 18145 | -4/Factory | Core destroyed Last Messages --------------- 18134_ G-67 Veteran suffers critical hit (Destroy). 18134_ Destroyed Lgt. Antimatter Reactor. 18135_ Power failure, Lgt. Antimatter Reactor shutdown. 18137_ Dispersion Rifle broken. 18137_ Overheating: Short circuit. 18137_ K-01 Serf collects debris. 18137_ Arm. Medium Treads destroyed. 18137_ Destroyed Field Laser. 18138_ Overheating: Core damaged (-115). 18139_ G-67 Veteran suffers critical hit (Destroy). 18139_ Destroyed Adv. Heat Sink. 18140_ Overheating: Matter decay (-68). 18140_ K-01 Serf collects debris. 18141_ G-67 Veteran heat short circuits Plasma Rifle. 18142_ Imp. Medium Armor Plating destroyed. 18143_ Power failure, Quantum Reactor shutdown. 18143_ Overheating: Matter decay (-29). 18143_ K-01 Serf collects debris. 18145_ Power failure, Lgt. Antimatter Reactor shutdown. 18145_ Overheating: Core damaged (-138). Map ----- +----------------------------------------------------+ | ????# #??????????????????????????????????? | | ????# #??????????????????????????????????? | | ????# #??????????????????????????????????? | | ????# #??????????????????????????????????? | | ????# #??????????????????????????????????? | | ????# [ #??????????????????????????????????? | | ????# = #?????????????????##???????????????? | | ????# #???????????????? T#???????????????? | | ????# #??????????????? ????????????????? | | ????# #??????????????? #????????????????? | | ????# [ #?????????????? ##### "?????????? | | ????# [ %#?????????????? "?????????? | | ????# ############### "?????????? | | ????# !% +" ????????? | | ????##################### ????????? | | ????????????????????????# [ ????????? | | ????????????????????????#= """ ######?????????? | | ????????????????????????# """ #??????????????? | | ????????????????????????# """ #??????????????? | | ????????????????????????# % #??????????????? | | ????????????????????????#* """ #??????????????? | | ????????????????????????# """ #??????????????? | | ????????????????????????# """ #??????????????? | | ????????????????????????# [ +??????????????? | | ????????????????????????# =%%= #??????????????? | | ????????????????????????#@*!k[ #??????????????? | | ????????????????????????#%g""" !###??????????????? | | ????????????????????????#==""" #????????????????? | | ????????????????????????#%* " #????????????????? | | ????????????????????????[=="F" #????????????????? | | ???????????????????????? pp""" #????????????????? | | ???????????????????????? =%[ #????????????????? | | ???????????????????????? * +????????????????? | | ????????????????????????####### ?????????????????? | | ?????????????????????????????????????????????????? | | ?????????????????????????????????????????????????? | | ?????????????????????????????????????????????????? | | ?????????????????????????????????????????????????? | | ?????????????????????????????????????????????????? | | ?????????????????????????????????????????????????? | | ?????????????????????????????????????????????????? | | ?????????????????????????????????????????????????? | | ?????????????????????????????????????????????????? | | ?????????????????????????????????????????????????? | | ?????????????????????????????????????????????????? | | ?????????????????????????????????????????????????? | | ?????????????????????????????????????????????????? | | ?????????????????????????????????????????????????? | | ?????????????????????????????????????????????????? | | ?????????????????????????????????????????????????? | +----------------------------------------------------+ Best States ------------- Heat Dissipation 98 Coolant Potential 65 Energy Generation 45 Energy Capacity 600 Matter Stores 300 Matter Capacity 300 Sight Range 16 Robot Scan Range 20 Terrain Scan Density 10 Jamming Range 12 EM Shielding 3 Armor Coverage 1350 Resistance: KI 20 Resistance: TH 20 Resistance: EX 20 Resistance: EM 45 Resistance: I 20 Resistance: S 20 Resistance: P 20 Utility Shielding 33 Evasion (%) 55 Targeting Accuracy 16 Target Analysis 6 Recoil Reduction 4 Offensive Hacking 22 Defensive Hacking 10 Item Schematics ----------------- None Robot Schematics ------------------ None Fabricated ------------ Nothing Alien Tech Used ----------------- None Achievements -------------- None Challenges ------------ None Game ------ Seed AdvancedScrapoidSabre Manual? 0 Play Time 02:05:46 Cumulative 248.4 hours Start 2024.08.07 @ 00:47:09 End 2024.08.07 @ 04:23:18 Sessions 1 Manual Loads 0 Difficulty Adventurer Special Mode None Game No. 186 Rogue 63 Adventurer 97 Explorer 26 Win Type - Total 1 Types 1/0/0/0/0/0/0/0/0 Lore% 51 Gallery% 67 Achievement% 68 Wizard Run 0 Options --------- Layout 1 ASCII 0 Keyboard 0 Movement Mouse Keybinds 0 Fullscreen 0 Font 16/Cog Map View 64x42 Zoom Use 0% Tactical HUD 1 Map Filters NONE Filters BRIGHTNESS(115)|SATURATION(100)|LOW_CONTRAST(0,16,30) Steam 1 RUN: 4b166e05-de85-4ebb-bf13-de4589536031